bitfinex/quotes_BTCUSD_20251001
["timestamp","ask_amount","ask_price","bid_price","bid_amount"]
[1759345951816,1.34943788,117470.0,117460.0,0.02976012]
[1759345952419,1.54943788,117470.0,117460.0,0.02976012]
[1759345952642,1.34943788,117470.0,117460.0,0.02976012]
[1759345952826,1.54943788,117470.0,117460.0,0.02976012]
[1759345954379,1.32386846,117470.0,117460.0,0.02976012]
[1759345954579,1.52386846,117470.0,117460.0,0.02976012]
[1759345955561,1.32386846,117470.0,117460.0,0.02976012]
[1759345955789,1.52386846,117470.0,117460.0,0.02976012]
[1759345956905,1.32386846,117470.0,117460.0,0.02976012]
[1759345957132,1.52386846,117470.0,117460.0,0.02976012]
[1759345957334,1.32386846,117470.0,117460.0,0.02976012]
[1759345957547,1.52386846,117470.0,117460.0,0.02976012]
[1759345961471,1.32386846,117470.0,117460.0,0.02976012]
[1759345961709,1.52386846,117470.0,117460.0,0.02976012]
[1759345962562,1.32386846,117470.0,117460.0,0.02976012]
[1759345962762,1.52386846,117470.0,117460.0,0.02976012]
[1759345963655,1.96936846,117470.0,117460.0,0.02976012]
[1759345963860,1.76936846,117470.0,117460.0,0.02976012]
[1759345964067,1.96936846,117470.0,117460.0,0.02976012]
[1759345968243,1.99493788,117470.0,117460.0,0.02976012]
[1759345975342,1.79493788,117470.0,117460.0,0.02976012]
[1759345975775,1.99493788,117470.0,117460.0,0.02976012]
[1759345981853,1.79493788,117470.0,117460.0,0.02976012]
[1759345982173,1.99493788,117470.0,117460.0,0.02976012]
[1759345984856,1.40971836,117470.0,117460.0,0.02976012]
[1759345985863,1.20971836,117470.0,117460.0,0.02976012]
[1759345986094,1.41169836,117470.0,117460.0,0.02976012]
[1759345986839,1.17029836,117470.0,117460.0,0.02976012]
[1759345987080,1.41169836,117470.0,117460.0,0.02976012]
[1759345987815,1.41476836,117470.0,117460.0,0.02976012]
[1759345988051,1.41476836,117470.0,117460.0,0.20003085]
[1759345988548,1.41476836,117470.0,117460.0,0.20022353]
[1759345990021,1.41476836,117470.0,117460.0,0.22579037]
[1759345990320,1.41476836,117470.0,117460.0,0.05551964]
[1759345991398,1.17336836,117470.0,117460.0,0.05551964]
[1759345991580,1.41476836,117470.0,117460.0,0.05551964]
[1759345991781,1.17336836,117470.0,117460.0,0.05472564]
[1759345991996,1.41476836,117470.0,117460.0,0.05472564]
[1759345992649,1.38919894,117470.0,117460.0,0.05472564]
[1759345992821,1.38915894,117470.0,117460.0,0.05472564]
[1759345993909,1.14779894,117470.0,117460.0,0.05472564]
[1759345994111,1.38915894,117470.0,117460.0,0.05472564]
[1759345995026,1.38915894,117470.0,117460.0,0.22499637]
[1759345998501,1.38915894,117470.0,117450.0,0.17028358]
[1759345998724,0.44136,117460.0,117450.0,0.1873121]
[1759345998933,0.44136,117460.0,117450.0,0.21287894]
[1759345999160,0.44136,117460.0,117450.0,0.19585206]
[1759345999402,0.44136,117460.0,117450.0,0.45127206]
[1759345999603,0.44641,117460.0,117450.0,0.45127206]
[1759346000712,0.20505,117460.0,117450.0,0.45127206]
[1759346001007,0.44641,117460.0,117450.0,0.45127206]
[1759346003266,0.20505,117460.0,117450.0,0.45127206]
[1759346003489,0.44641,117460.0,117450.0,0.45127206]
[1759346003832,0.44334,117460.0,117450.0,0.45127206]
[1759346004053,0.44647,117460.0,117450.0,0.45127206]
[1759346007460,0.44136,117460.0,117450.0,0.45127206]
[1759346008559,0.24136,117460.0,117450.0,0.45127206]
[1759346008767,0.44136,117460.0,117450.0,0.45127206]
[1759346008989,0.24136,117460.0,117450.0,0.45127206]
[1759346009195,0.44136,117460.0,117450.0,0.45127206]
[1759346010518,0.24136,117460.0,117450.0,0.45127206]
[1759346010690,0.44136,117460.0,117450.0,0.45127206]
[1759346011114,0.24136,117460.0,117450.0,0.45127206]
[1759346011720,0.44136,117460.0,117450.0,0.45127206]
[1759346012760,0.24136,117460.0,117450.0,0.45127206]
[1759346012970,0.44136,117460.0,117450.0,0.45127206]
[1759346013793,0.44136,117460.0,117450.0,0.25332997]
[1759346014244,0.44136,117460.0,117450.0,0.42361519]
[1759346014655,0.44136,117460.0,117450.0,0.44918203]
[1759346014850,0.24136,117460.0,117450.0,0.44918203]
[1759346015086,0.44136,117460.0,117450.0,0.44918203]
[1759346018060,0.24136,117460.0,117450.0,0.44918203]
[1759346018263,0.44136,117460.0,117450.0,0.44918203]
[1759346018999,0.24136,117460.0,117450.0,0.44918203]
[1759346019208,0.44136,117460.0,117450.0,0.69070223]
[1759346022697,0.44655,117460.0,117450.0,0.69070223]
[1759346023381,0.24136,117460.0,117450.0,0.69070223]
[1759346023588,0.44136,117460.0,117450.0,0.69070223]
[1759346025910,0.44342,117460.0,117450.0,0.69070223]
[1759346026064,0.44655,117460.0,117450.0,0.69070223]
[1759346026740,0.24655,117460.0,117450.0,0.69070223]
[1759346026915,0.44655,117460.0,117450.0,0.69070223]
[1759346027118,0.24655,117460.0,117450.0,0.69070223]
[1759346027465,0.44655,117460.0,117450.0,0.69070223]
[1759346027668,0.20206,117460.0,117450.0,0.69070223]
[1759346029607,0.20519,117460.0,117450.0,0.69070223]
[1759346030891,0.20363502,117460.0,117450.0,0.69165223]
[1759346031094,1.40959613,117470.0,117460.0,0.17027073]
[1759346031309,1.41169613,117470.0,117460.0,0.42777073]
[1759346032395,1.41169613,117470.0,117460.0,0.42797093]
[1759346033039,1.41489613,117470.0,117460.0,0.42797093]
[1759346035427,1.21489613,117470.0,117460.0,0.42797093]
[1759346035630,1.41489613,117470.0,117460.0,0.42797093]
[1759346037708,1.38932929,117470.0,117460.0,0.42797093]
[1759346038973,1.18932929,117470.0,117460.0,0.42797093]
[1759346039215,1.38932929,117470.0,117460.0,0.42797093]
[1759346040140,1.18932929,117470.0,117460.0,0.42797093]
[1759346040349,1.14804929,117470.0,117460.0,0.42763406]
[1759346040559,0.44188271,117470.0,117460.0,0.42955406]
[1759346041006,0.24188271,117470.0,117460.0,0.42955406]
[1759346041196,0.24188271,117470.0,117460.0,0.43075406]
[1759346042058,0.24188271,117470.0,117460.0,0.49075406]
[1759346043539,0.44188271,117470.0,117460.0,0.49075406]
[1759346044948,0.44030702,117470.0,117460.0,0.49075406]
[1759346047059,0.21530702,117470.0,117460.0,0.49075406]
[1759346047260,0.21530702,117470.0,117460.0,8.49075406]
[1759346047543,0.21530702,117470.0,117460.0,8.51631487]
[1759346047955,0.21530702,117470.0,117460.0,8.60487487]
[1759346054138,0.21376034,117470.0,117460.0,8.60487487]
[1759346054957,0.21376034,117470.0,117460.0,8.84487487]
[1759346055370,0.21376034,117470.0,117460.0,8.84607487]
[1759346055756,0.21376034,117470.0,117460.0,8.51631487]
[1759346055921,0.21376034,117470.0,117460.0,8.84607487]
[1759346056116,0.21376034,117470.0,117460.0,8.51631487]
[1759346056392,0.21376034,117470.0,117460.0,8.84607487]
[1759346056891,0.21906034,117470.0,117460.0,50.51353174]
[1759346057087,0.61045686,117470.0,117460.0,0.5589002]
[1759346058084,0.61045686,117470.0,117460.0,0.72917093]
[1759346058591,0.63545686,117470.0,117460.0,0.5589002]
[1759346058842,0.63545686,117470.0,117460.0,0.72917093]
[1759346059551,0.63545686,117470.0,117460.0,0.5589002]
[1759346060495,0.63545686,117470.0,117460.0,0.3177002]
[1759346060715,0.63545686,117470.0,117460.0,0.5589002]
[1759346062172,0.63541085,117470.0,117460.0,0.5589002]
[1759346065574,0.63541085,117470.0,117460.0,0.48797093]
[1759346065758,0.63541085,117470.0,117460.0,0.5589002]
[1759346066132,0.63541085,117470.0,117460.0,0.72917093]
[1759346081147,0.63221085,117470.0,117460.0,0.73109093]
[1759346081559,0.63517085,117470.0,117460.0,0.73109093]
[1759346083017,0.63517085,117470.0,117460.0,0.72917093]
[1759346085802,0.43485462,117470.0,117460.0,0.73109093]
[1759346086016,0.43485462,117470.0,117460.0,58.73229093]
[1759346086201,0.43485462,117470.0,117460.0,50.73229093]
[1759346086496,0.43485462,117470.0,117460.0,50.73109093]
[1759346088714,0.23485462,117470.0,117460.0,50.73109093]
[1759346088919,0.43485462,117470.0,117460.0,50.73109093]
[1759346089818,0.43331207,117470.0,117460.0,50.73109093]
[1759346093332,0.6035683,117470.0,117460.0,50.73109093]
[1759346093934,0.43331207,117470.0,117460.0,50.73109093]
[1759346094229,0.23331207,117470.0,117460.0,50.73109093]
[1759346094436,0.43331207,117470.0,117460.0,50.73109093]
[1759346097108,0.4336283,117470.0,117460.0,0.72913093]
[1759346097306,0.6336283,117470.0,117460.0,0.72913093]
[1759346097640,0.4336283,117470.0,117460.0,0.72913093]
[1759346098163,0.6336283,117470.0,117460.0,0.63313093]
[1759346098964,0.4336283,117470.0,117460.0,0.63313093]
[1759346099163,0.6336283,117470.0,117460.0,0.63313093]
[1759346100021,0.62801319,117470.0,117460.0,0.63114673]
[1759346100581,0.42801319,117470.0,117460.0,0.63114673]
[1759346100782,0.62801319,117470.0,117460.0,0.63114673]
[1759346101011,0.6068729,117470.0,117460.0,0.63114673]
[1759346102566,0.6068729,117470.0,117460.0,0.460876]
[1759346102973,0.6068729,117470.0,117460.0,0.63114673]
[1759346103145,0.6480329,117470.0,117460.0,0.63114673]
[1759346103355,0.8480329,117470.0,117460.0,0.63114673]
[1759346104125,0.8480329,117470.0,117460.0,0.460876]
[1759346104566,0.8480329,117470.0,117460.0,0.63114673]
[1759346104962,0.8480329,117470.0,117460.0,0.460876]
[1759346105168,0.44147623,117470.0,117460.0,0.460876]
[1759346105371,0.64147623,117470.0,117460.0,0.460876]
[1759346105830,0.64147623,117470.0,117460.0,0.63114673]
[1759346106557,0.44147623,117470.0,117460.0,0.63114673]
[1759346106759,0.64147623,117470.0,117460.0,0.63114673]
[1759346106969,0.44147623,117470.0,117460.0,0.63114673]
[1759346107179,0.40031623,117470.0,117460.0,0.63114673]
[1759346108374,0.40031623,117470.0,117460.0,0.63306673]
[1759346108791,0.20031623,117470.0,117460.0,0.63306673]
[1759346109033,0.40031623,117470.0,117460.0,0.63306673]
[1759346109400,0.19525623,117470.0,117460.0,0.63306673]
[1759346109558,0.39525623,117470.0,117460.0,0.63426673]
[1759346109989,0.39525623,117470.0,117460.0,0.63306673]
[1759346110252,0.39725623,117470.0,117460.0,0.63306673]
[1759346110660,0.39525623,117470.0,117460.0,0.63306673]
[1759346111935,0.39365558,117470.0,117460.0,0.63306673]
[1759346112600,0.19365558,117470.0,117460.0,0.63306673]
[1759346112803,0.39365558,117470.0,117460.0,0.63306673]
[1759346113385,0.19365558,117470.0,117460.0,0.63306673]
[1759346113587,0.39365558,117470.0,117460.0,0.63306673]
[1759346113805,0.39565558,117470.0,117460.0,0.63306673]
[1759346114615,0.39365558,117470.0,117460.0,0.63306673]
[1759346114856,0.22339935,117470.0,117460.0,0.63306673]
[1759346115070,0.39365558,117470.0,117460.0,0.63426673]
[1759346115493,0.39365558,117470.0,117460.0,0.63306673]
[1759346120396,0.19365558,117470.0,117460.0,0.63306673]
[1759346120603,0.39365558,117470.0,117460.0,0.63306673]
[1759346121948,0.19365558,117470.0,117460.0,0.63306673]
[1759346122171,0.39365558,117470.0,117460.0,0.63306673]
[1759346122619,0.41910873,117480.0,117470.0,0.17025623]
[1759346122810,0.21915533,117480.0,117470.0,0.52763623]
[1759346123029,0.41915533,117480.0,117470.0,0.52763623]
[1759346123371,0.42081192,117480.0,117470.0,0.52763623]
[1759346123807,0.59105366,117480.0,117470.0,0.54802727]
[1759346124488,0.59105366,117480.0,117470.0,0.61725104]
[1759346124489,0.61955301,117480.0,117470.0,0.61725104]
[1759346124778,0.61955301,117480.0,117470.0,0.78750727]
[1759346125904,0.61656301,117480.0,117470.0,0.78942727]
[1759346126142,0.61445301,117480.0,117470.0,0.78942727]
[1759346127045,0.41445301,117480.0,117470.0,0.78942727]
[1759346127264,0.61445301,117480.0,117470.0,0.78942727]
[1759346128971,0.41445301,117480.0,117470.0,0.78942727]
[1759346129353,0.61445301,117480.0,117470.0,0.78942727]
[1759346130396,0.44421127,117480.0,117470.0,0.78942727]
[1759346130969,0.61445301,117480.0,117470.0,0.79062727]
[1759346131194,0.61445301,117480.0,117470.0,0.59048776]
[1759346131195,0.61955301,117480.0,117470.0,0.59048776]
[1759346131374,0.41955301,117480.0,117470.0,0.59048776]
[1759346131578,0.61955301,117480.0,117470.0,0.59048776]
[1759346131920,0.61955301,117480.0,117470.0,0.59056776]
[1759346132370,0.61955301,117480.0,117470.0,0.59248776]
[1759346132829,0.41955301,117480.0,117470.0,0.59248776]
[1759346133010,0.61955301,117480.0,117470.0,0.59248776]
[1759346134643,0.61955301,117480.0,117470.0,0.42223153]
[1759346134846,0.61955301,117480.0,117470.0,0.59248776]
[1759346135490,0.61955301,117480.0,117470.0,0.42023153]
[1759346137422,0.61955301,117480.0,117470.0,0.59048776]
[1759346137988,0.41955301,117480.0,117470.0,0.59048776]
[1759346138355,0.61955301,117480.0,117470.0,0.59048776]
[1759346138531,0.41955301,117480.0,117470.0,0.59048776]
[1759346138757,0.61955301,117480.0,117470.0,0.59048776]
[1759346139155,0.61955301,117480.0,117470.0,0.42023153]
[1759346139378,0.41955301,117480.0,117470.0,0.42023153]
[1759346139557,0.41445301,117480.0,117470.0,0.59240776]
[1759346139763,0.61656301,117480.0,117470.0,0.59048776]
[1759346140022,0.61955301,117480.0,117470.0,0.59048776]
[1759346140602,0.61955301,117480.0,117470.0,0.59240776]
[1759346140942,0.61955301,117480.0,117470.0,0.59213196]
[1759346141217,0.61656301,117480.0,117470.0,0.59213196]
[1759346141810,0.61656301,117480.0,117470.0,0.42187573]
[1759346143467,0.61955301,117480.0,117470.0,0.18047573]
[1759346143664,0.61955301,117480.0,117470.0,0.42179573]
[1759346143898,0.61955301,117480.0,117470.0,0.41987573]
[1759346147741,0.61955301,117480.0,117470.0,0.59013196]
[1759346148181,0.41955301,117480.0,117470.0,0.59013196]
[1759346148381,0.61955301,117480.0,117470.0,0.59013196]
[1759346149468,0.61955301,117480.0,117470.0,0.41987573]
[1759346149783,0.61955301,117480.0,117470.0,0.59013196]
[1759346150373,0.61955301,117480.0,117470.0,0.59205196]
[1759346150579,0.61955301,117480.0,117470.0,0.41987573]
[1759346151434,0.61955301,117480.0,117470.0,0.59013196]
[1759346155352,0.61955301,117480.0,117470.0,0.34881196]
[1759346155561,0.61955301,117480.0,117470.0,0.58997196]
[1759346155954,0.41955301,117480.0,117470.0,0.58997196]
[1759346156284,0.61955301,117480.0,117470.0,0.58997196]
[1759346158953,0.61955301,117480.0,117470.0,0.34881196]
[1759346159167,0.61955301,117480.0,117470.0,0.58993196]
[1759346163121,0.44931127,117480.0,117470.0,0.58993196]
[1759346163477,0.61955301,117480.0,117470.0,0.3861088]
[1759346163674,0.61955301,117480.0,117470.0,0.6395588]
[1759346166937,0.61955301,117480.0,117470.0,0.3984388]
[1759346167156,0.61955301,117480.0,117470.0,0.6395588]
[1759346167354,0.61955301,117480.0,117470.0,0.65905714]
[1759346171232,0.44931127,117480.0,117470.0,0.66097714]
[1759346171445,0.61955301,117480.0,117470.0,0.66097714]
[1759346171645,0.61955301,117480.0,117470.0,0.65905714]
[1759346172354,0.61656301,117480.0,117470.0,0.66097714]
[1759346172559,0.44421127,117480.0,117470.0,0.66097714]
[1759346172838,0.22081192,117480.0,117470.0,0.66217714]
[1759346173044,0.22081192,117480.0,117470.0,9.00217714]
[1759346182673,0.21353006,117480.0,117470.0,9.00217714]
[1759346182882,0.2079173,117480.0,117470.0,8.99838791]
[1759346183794,0.2079173,117480.0,117470.0,8.99701698]
[1759346187456,0.2079173,117480.0,117470.0,9.08553698]
[1759346188553,0.2079173,117480.0,117470.0,9.20079888]
[1759346188784,0.2079173,117480.0,117470.0,9.22635416]
[1759346202368,0.2079173,117480.0,117470.0,9.3025001]
[1759346204172,0.2129973,117480.0,117470.0,9.2691882]
[1759346204599,0.2099973,117480.0,117470.0,9.1807082]
[1759346204805,0.2129973,117480.0,117470.0,9.2692282]
[1759346205008,0.2079173,117480.0,117470.0,9.2711482]
[1759346205216,0.2079173,117480.0,117470.0,9.19500226]
[1759346205626,0.2079173,117480.0,117470.0,9.19620226]
[1759346205836,0.2129973,117480.0,117470.0,9.19308226]
[1759346206217,0.2079173,117480.0,117470.0,9.19500226]
[1759346206432,0.2079173,117480.0,117470.0,9.19620226]
[1759346208243,0.2079173,117480.0,117470.0,8.86656226]
[1759346208460,0.2129973,117480.0,117470.0,9.19308226]
[1759346208670,0.2099973,117480.0,117470.0,9.19500226]
[1759346208884,0.2079173,117480.0,117470.0,9.19500226]
[1759346212047,0.2128973,117480.0,117470.0,1.01941226]
[1759346212268,0.2128973,117480.0,117470.0,1.10793226]
[1759346212686,0.2099373,117480.0,117470.0,1.10985226]
[1759346212863,0.2079173,117480.0,117470.0,1.10985226]
[1759346213091,0.2079173,117480.0,117470.0,1.17929214]
[1759346213307,0.2079173,117480.0,117470.0,1.10985226]
[1759346216139,0.2128973,117480.0,117470.0,0.77833226]
[1759346216362,0.43629665,117480.0,117470.0,0.99385698]
[1759346216788,0.43629665,117480.0,117470.0,0.75277698]
[1759346216971,0.43629665,117480.0,117470.0,0.99385698]
[1759346217678,0.43629665,117480.0,117470.0,0.76072404]
[1759346217884,0.43629665,117480.0,117470.0,0.93098027]
[1759346219705,0.43629665,117480.0,117470.0,0.34990027]
[1759346219908,0.60653839,117480.0,117470.0,0.59098027]
[1759346221483,0.43629665,117480.0,117470.0,0.59098027]
[1759346221699,0.60653839,117480.0,117470.0,0.59098027]
[1759346223110,0.43629665,117480.0,117470.0,0.59098027]
[1759346228109,0.60653839,117480.0,117470.0,0.59098027]
[1759346228337,0.60653839,117480.0,117470.0,0.34990027]
[1759346228576,0.60653839,117480.0,117470.0,0.4012257]
[1759346228994,0.60653839,117480.0,117470.0,0.43554401]
[1759346229792,0.63210225,117480.0,117470.0,0.43554401]
[1759346230010,0.63210225,117480.0,117470.0,0.4012257]
[1759346230417,0.87318225,117480.0,117470.0,0.1601457]
[1759346230619,1.04700372,117480.0,117470.0,0.1601457]
[1759346239634,0.94327849,117480.0,117470.0,0.15437772]
[1759346242195,0.52697675,117480.0,117470.0,0.32463395]
[1759346242426,0.19290354,117480.0,117470.0,8.75627395]
[1759346242644,0.04754701,117490.0,117470.0,8.8676896]
[1759346242855,0.04754701,117490.0,117480.0,8.86277739]
[1759346243070,0.04754701,117490.0,117480.0,9.19282174]
[1759346243283,0.04754701,117490.0,117480.0,9.21837563]
[1759346243496,0.04754701,117490.0,117480.0,1.22178563]
[1759346243720,0.04754701,117490.0,117480.0,1.22199602]
[1759346244763,0.04754701,117490.0,117480.0,1.28199602]
[1759346247729,0.04754701,117490.0,117480.0,0.95235602]
[1759346247935,0.04754701,117490.0,117480.0,1.28195602]
[1759346248650,0.04776338,117490.0,117480.0,1.28195602]
[1759346259582,0.04566104,117490.0,117480.0,1.28195602]
[1759346263135,0.04566104,117490.0,117480.0,1.19339602]
[1759346269488,0.04566104,117490.0,117480.0,1.34258866]
[1759346272988,0.04566104,117490.0,117480.0,1.42769866]
[1759346273209,0.04566104,117490.0,117480.0,1.36702602]
[1759346273537,0.04566104,117490.0,117480.0,1.44317196]
[1759346278233,0.04566104,117490.0,117480.0,1.27850602]
[1759346278554,0.04566104,117490.0,117480.0,1.36702602]
[1759346278963,0.25241804,117490.0,117480.0,1.36702602]
[1759346279976,0.25241804,117490.0,117480.0,1.03746602]
[1759346280184,0.25241804,117490.0,117480.0,1.36702602]
[1759346283038,0.25241804,117490.0,117480.0,1.30559044]
[1759346285268,0.25241804,117490.0,117480.0,9.30559044]
[1759346285507,0.25010803,117490.0,117480.0,9.30445296]
[1759346286260,0.25010803,117490.0,117480.0,8.97489296]
[1759346286464,0.25010803,117490.0,117480.0,9.30449296]
[1759346286696,0.25010803,117490.0,117480.0,9.3305872]
[1759346286955,0.25010803,117490.0,117480.0,9.30449296]
[1759346288216,0.25010803,117490.0,117480.0,9.33464486]
[1759346288425,0.25010803,117490.0,117480.0,9.45193363]
[1759346288898,5.02847827,117500.0,117490.0,0.17022725]
[1759346289097,5.02852486,117500.0,117490.0,9.29673607]
[1759346289306,5.02852486,117500.0,117490.0,9.30986525]
[1759346289905,5.02852486,117500.0,117490.0,9.31007564]
[1759346291734,5.02852486,117500.0,117490.0,9.64174658]
[1759346292405,5.02852486,117500.0,117490.0,9.5808986]
[1759346293019,5.02852486,117500.0,117490.0,9.64174658]
[1759346293271,5.02852486,117500.0,117490.0,9.70678201]
[1759346294651,5.02852486,117500.0,117490.0,9.73233152]
[1759346294932,5.0287412,117500.0,117490.0,9.73233152]
[1759346296248,5.0287412,117500.0,117490.0,9.73393217]
[1759346297551,4.64091137,117500.0,117490.0,9.67308419]
[1759346298874,4.64091137,117500.0,117490.0,9.73393217]
[1759346299960,4.64091137,117500.0,117490.0,9.82354217]
[1759346302365,4.64091137,117500.0,117490.0,9.82351325]
[1759346303769,4.64091137,117500.0,117490.0,9.58239325]
[1759346303988,4.64091137,117500.0,117490.0,10.26591325]
[1759346304728,4.25589433,117500.0,117490.0,10.20506527]
[1759346305157,3.84221745,117500.0,117490.0,10.20506527]
[1759346305360,3.79662178,117500.0,117490.0,10.20506527]
[1759346305967,3.33559664,117500.0,117490.0,10.20506527]
[1759346310079,2.93214281,117500.0,117490.0,10.25615527]
[1759346310302,2.6882877,117500.0,117490.0,9.57263527]
[1759346310517,2.52469324,117500.0,117490.0,10.25627527]
[1759346310723,2.28914585,117500.0,117490.0,10.25627527]
[1759346310996,2.19017053,117500.0,117490.0,10.25627527]
[1759346311206,1.87332985,117500.0,117490.0,10.25627527]
[1759346311411,1.73151292,117500.0,117490.0,10.25627527]
[1759346311614,1.53440001,117500.0,117490.0,10.25627527]
[1759346311823,1.38013743,117500.0,117490.0,10.25627527]
[1759346312049,1.33071255,117500.0,117490.0,10.31712325]
[1759346313968,1.33071255,117500.0,117490.0,10.31708325]
[1759346314176,1.33071255,117500.0,117490.0,10.25623527]
[1759346315271,1.33071255,117500.0,117490.0,9.57263527]
[1759346315479,1.33071255,117500.0,117490.0,10.25623527]
[1759346315925,1.33071255,117500.0,117490.0,10.31708325]
[1759346317267,0.90006783,117500.0,117490.0,10.27563527]
[1759346317489,0.86823127,117500.0,117490.0,10.33648325]
[1759346322001,0.86823127,117500.0,117490.0,10.27563527]
[1759346323817,0.86823127,117500.0,117490.0,10.22454527]
[1759346324026,0.86823127,117500.0,117490.0,10.27563527]
[1759346325947,0.86823127,117500.0,117490.0,10.27579527]
[1759346327484,0.75337231,117500.0,117490.0,10.27579527]
[1759346327904,0.75337231,117500.0,117490.0,10.18727527]
[1759346328116,0.33287481,117500.0,117490.0,10.27575527]
[1759346329214,0.33589481,117500.0,117490.0,9.54655715]
[1759346329428,0.33589481,117500.0,117490.0,10.23023715]
[1759346329612,0.33287481,117500.0,117490.0,10.23023715]
[1759346329825,0.33287481,117500.0,117490.0,9.54655715]
[1759346330068,0.33287481,117500.0,117490.0,10.23023715]
[1759346331180,0.33287481,117500.0,117490.0,9.54655715]
[1759346331390,0.33776481,117500.0,117490.0,10.17914715]
[1759346331603,0.33287481,117500.0,117490.0,10.17914715]
[1759346333300,0.33580481,117500.0,117490.0,9.64701715]
[1759346333502,0.33287481,117500.0,117490.0,10.17910715]
[1759346334896,0.33287481,117500.0,117490.0,10.19850715]
[1759346337203,0.33287481,117500.0,117490.0,10.19846715]
[1759346338060,0.33287481,117500.0,117490.0,10.27461309]
[1759346338713,0.32787481,117500.0,117490.0,10.27461309]
[1759346339096,0.32787481,117500.0,117490.0,9.59101309]
[1759346339295,0.32787481,117500.0,117490.0,10.27465309]
[1759346341056,0.32787481,117500.0,117490.0,10.25525309]
[1759346341269,0.32787481,117500.0,117490.0,10.30634309]
[1759346341483,0.32787481,117500.0,117490.0,10.25525309]
[1759346348287,0.32787481,117500.0,117490.0,10.2813179]
[1759346349260,0.32787481,117500.0,117490.0,10.1917079]
[1759346349634,0.32787481,117500.0,117490.0,10.2813179]
[1759346352400,0.32787481,117500.0,117490.0,9.5976779]
[1759346352558,0.32787481,117500.0,117490.0,10.2813979]
[1759346353415,0.32787481,117500.0,117490.0,10.25533309]
[1759346357224,0.32787481,117500.0,117490.0,9.97617768]
[1759346357431,0.32787481,117500.0,117490.0,9.70380493]
[1759346357605,0.32787481,117500.0,117490.0,10.14628493]
[1759346359730,0.32787481,117500.0,117490.0,10.17259472]
[1759346362390,0.32787481,117500.0,117490.0,10.17260446]
[1759346363790,0.32787481,117500.0,117490.0,10.14629467]
[1759346367900,0.32787481,117500.0,117490.0,10.17260446]
[1759346370337,0.32787481,117500.0,117490.0,10.22369446]
[1759346370338,1e-08,117500.0,117490.0,10.22369446]
[1759346370549,1e-08,117500.0,117490.0,10.24309446]
[1759346371001,0.39917948,117560.0,117540.0,0.17015484]
[1759346371206,0.1722816,117550.0,117540.0,0.52637484]
[1759346371414,0.19387729,117550.0,117540.0,0.67098523]
[1759346371708,0.19495851,117550.0,117540.0,0.69653037]
[1759346372763,0.20346552,117550.0,117540.0,0.69653037]
[1759346373149,0.20648552,117550.0,117540.0,0.69653037]
[1759346375284,0.20648552,117550.0,117540.0,0.55213037]
[1759346375488,0.20648552,117550.0,117540.0,0.62297553]
[1759346375733,0.20648552,117550.0,117540.0,0.76758523]
[1759346375900,0.20648552,117550.0,117540.0,0.79313037]
[1759346376736,0.20648552,117550.0,117540.0,0.62297553]
[1759346377145,0.20648552,117550.0,117540.0,0.79313037]
[1759346379881,0.20648552,117550.0,117540.0,0.55213037]
[1759346380057,0.20648552,117550.0,117540.0,0.79313037]
[1759346380463,0.20648428,117550.0,117540.0,0.79313037]
[1759346382525,0.19797727,117550.0,117540.0,0.79313037]
[1759346385870,0.02783691,117550.0,117540.0,0.79313037]
[1759346386098,0.19797727,117550.0,117540.0,0.79313037]
[1759346386692,0.02783691,117550.0,117540.0,0.79313037]
[1759346394113,0.00624122,117550.0,117540.0,0.79313037]
[1759346397733,0.00108122,117550.0,117540.0,0.88022037]
[1759346397942,0.00108122,117550.0,117540.0,0.88324037]
[1759346398149,0.00632122,117550.0,117540.0,0.87824037]
[1759346400138,0.00318122,117550.0,117540.0,0.88022037]
[1759346400710,0.00632122,117550.0,117540.0,0.87824037]
[1759346404835,0.00108122,117550.0,117540.0,1.22324037]
[1759346405028,0.00108122,117550.0,117540.0,1.24955016]
[1759346405177,0.00108122,117550.0,117540.0,1.22324037]
[1759346405388,0.00108122,117550.0,117540.0,1.22022037]
[1759346405654,0.00108122,117550.0,117540.0,1.03809416]
[1759346405655,0.00318122,117550.0,117540.0,1.03809416]
[1759346405800,0.00632122,117550.0,117540.0,1.27905416]
[1759346408441,0.00632122,117550.0,117540.0,0.79309037]
[1759346411442,0.00108122,117550.0,117540.0,0.79507037]
[1759346411654,0.00632122,117550.0,117540.0,0.79309037]
[1759346411838,0.00632122,117550.0,117540.0,8.79507037]
[1759346412544,0.00632122,117550.0,117540.0,8.79309037]
[1759346412933,0.00632122,117550.0,117540.0,8.79507037]
[1759346413240,0.00318122,117550.0,117540.0,8.79507037]
[1759346413486,0.00632122,117550.0,117540.0,8.79309037]
[1759346413671,0.00318122,117550.0,117540.0,8.79507037]
[1759346415579,0.00632122,117550.0,117540.0,8.79309037]
[1759346415987,0.00632122,117550.0,117540.0,8.79645037]
[1759346419377,0.00632122,117550.0,117540.0,8.55213037]
[1759346419587,0.00632122,117550.0,117540.0,0.79653037]
[1759346424013,0.00632122,117550.0,117540.0,0.79645037]
[1759346424543,0.00632122,117550.0,117540.0,0.79861037]
[1759346424790,0.00632122,117550.0,117540.0,0.79645037]
[1759346425585,0.00632122,117550.0,117540.0,0.79861037]
[1759346425828,0.00632122,117550.0,117540.0,0.79645037]
[1759346426486,0.00632122,117550.0,117540.0,0.55213037]
[1759346426709,0.00632122,117550.0,117540.0,0.79633037]
[1759346427694,0.00632122,117550.0,117540.0,0.55213037]
[1759346427903,0.00108122,117550.0,117540.0,0.79845037]
[1759346428883,0.00316122,117550.0,117540.0,0.79845037]
[1759346429629,0.00108122,117550.0,117540.0,0.80147037]
[1759346430118,0.00108122,117550.0,117540.0,8.80147037]
[1759346430386,0.00108122,117550.0,117540.0,8.91583563]
[1759346430638,0.00108122,117550.0,117540.0,9.25583563]
[1759346433978,0.00108122,117550.0,117540.0,9.25281563]
[1759346434380,0.00108122,117550.0,117540.0,9.25583563]
[1759346439144,0.00108122,117550.0,117540.0,9.25281563]
[1759346439350,0.00108122,117550.0,117540.0,9.25583563]
[1759346440373,0.00108122,117550.0,117540.0,9.01167563]
[1759346440581,0.00316122,117550.0,117540.0,9.25317563]
[1759346441289,0.00108122,117550.0,117540.0,9.25619563]
[1759346442231,0.00108122,117550.0,117540.0,9.25317563]
[1759346442746,0.00316122,117550.0,117540.0,9.25317563]
[1759346444299,0.00108122,117550.0,117540.0,9.25317563]
[1759346445378,0.00618122,117550.0,117540.0,8.97724037]
[1759346445598,0.00618122,117550.0,117540.0,9.22160037]
[1759346445818,0.00618122,117550.0,117540.0,9.13649037]
[1759346446433,0.00618122,117550.0,117540.0,8.93706638]
[1759346448180,0.00618122,117550.0,117540.0,8.69270638]
[1759346448409,0.00618122,117550.0,117540.0,8.93706638]
[1759346449184,0.00618122,117550.0,117540.0,8.93702638]
[1759346452498,0.00618122,117550.0,117540.0,8.69270638]
[1759346452758,0.00618122,117550.0,117540.0,8.93686638]
[1759346455287,0.00618122,117550.0,117540.0,8.93886638]
[1759346455756,0.00618122,117550.0,117540.0,8.93686638]
[1759346456812,0.00618122,117550.0,117540.0,8.93670638]
[1759346460527,0.00618122,117550.0,117540.0,8.69270638]
[1759346460724,0.00618122,117550.0,117540.0,8.93662638]
[1759346462130,0.00618122,117550.0,117540.0,8.93858638]